fUSD/lending_fUSD_20240426
["ID","MTS","AMOUNT","RATE_DAILY","PERIOD"]
[323668553,1714153838667,-500.0,0.00011182,2]
[323668554,1714153838677,-500.0,0.00011182,2]
[323668555,1714153838687,-524.24,0.00011182,2]
[323668556,1714153838698,-500.0,0.00011182,2]
[323668557,1714153838707,-620.83,0.00011182,2]
[323668558,1714153838718,-500.0,0.00011182,2]
[323668559,1714153838727,-325.7521165,0.00011182,2]
[323668560,1714153838737,-155.0,0.00011182,2]
[323668561,1714153838748,-150.99,0.00011182,2]
[323668562,1714153838759,-297.71899308,0.00011182,2]
[323668563,1714153838769,-255.3668917,0.00011182,2]
[323668565,1714153838782,-164.47454881,0.00011182,2]
[323668567,1714153838793,-313.54403487,0.00011182,2]
[323668569,1714153838803,-155.61699874,0.00011182,2]
[323668571,1714153838814,-1486.76680864,0.00011182,2]
[323668573,1714153838825,-155.0,0.00011182,2]
[323668575,1714153838835,-323.28165862,0.00011182,2]
[323668577,1714153838845,-265.50698915,0.00011182,2]
[323668579,1714153838856,-455.80655655,0.00011182,2]
[323668581,1714153838868,-353.23172617,0.00011182,2]
[323668583,1714153838878,-376.71560002,0.00011182,2]
[323668585,1714153838888,-199.97342672,0.00011182,2]
[323668587,1714153838898,-2321.74176097,0.00011182,2]
[323668589,1714153838908,-1298.24681142,0.00011182,2]
[323668591,1714153838919,-155.84235863,0.00011182,2]
[323668593,1714153838929,-2072.52549474,0.00011182,2]
[323668595,1714153838938,-216.15044908,0.00011182,2]
[323668597,1714153838948,-155.4084474,0.00011182,2]
[323668598,1714153838959,-226.20204184,0.00011182,2]
[323668600,1714153838971,-155.0,0.00011182,2]
[323668602,1714153838980,-641.95589188,0.00011182,2]
[323668604,1714153838990,-162.10190653,0.00011182,2]
[323668606,1714153839002,-695.08,0.00011183,2]
[323668608,1714153839014,-500.0,0.00011183,2]
[323668610,1714153839024,-1139.72,0.00011183,2]
[323668612,1714153839034,-500.0,0.00011183,2]
[323668614,1714153839046,-500.0,0.00011183,2]
[323668617,1714153839056,-500.0,0.00011183,2]
[323668619,1714153839066,-500.0,0.00011183,2]
[323668621,1714153839075,-500.0,0.00011183,2]
[323668623,1714153839085,-500.0,0.00011183,2]
[323668625,1714153839096,-500.0,0.00011183,2]
[323668627,1714153839106,-500.0,0.00011183,2]
[323668628,1714153839115,-500.0,0.00011183,2]
[323668631,1714153839126,-500.0,0.00011183,2]
[323668632,1714153839136,-522.46,0.00011183,2]
[323668635,1714153839146,-1396.49,0.00011183,2]
[323668637,1714153839157,-587.89,0.00011183,2]
[323668639,1714153839167,-500.0,0.00011183,2]
[323668641,1714153839177,-500.0,0.00011183,2]
[323668643,1714153839187,-500.0,0.00011183,2]
[323668645,1714153839197,-500.0,0.00011183,2]
[323668647,1714153839207,-917.3,0.00011183,2]
[323668649,1714153839217,-500.0,0.00011183,2]
[323668651,1714153839226,-500.0,0.00011183,2]
[323668653,1714153839236,-1421.13,0.00011183,2]
[323668655,1714153839246,-500.0,0.00011183,2]
[323668657,1714153839256,-500.0,0.00011183,2]
[323668659,1714153839266,-1480.37,0.00011183,2]
[323668661,1714153839275,-500.0,0.00011183,2]
[323668663,1714153839285,-231.28,0.00011183,2]
[323668665,1714153839295,-500.0,0.00011183,2]
[323668667,1714153839304,-1731.94,0.00011183,2]
[323668668,1714153839313,-554.6,0.00011183,2]
[323668669,1714153839322,-500.0,0.00011183,2]
[323668670,1714153839331,-500.0,0.00011183,2]
[323668671,1714153839339,-377.53,0.00011183,2]
[323668672,1714153839348,-500.0,0.00011183,2]
[323668673,1714153839357,-616.53,0.00011183,2]
[323668674,1714153839366,-500.0,0.00011183,2]
[323668675,1714153839375,-500.0,0.00011183,2]
[323668676,1714153839384,-652.74,0.00011183,2]
[323668677,1714153839393,-500.0,0.00011183,2]
[323668678,1714153839401,-500.0,0.00011183,2]
[323668679,1714153839410,-500.0,0.00011183,2]
[323668680,1714153839420,-709.29,0.00011183,2]
[323668681,1714153839429,-500.0,0.00011183,2]
[323668682,1714153839439,-500.0,0.00011183,2]
[323668683,1714153839449,-500.0,0.00011183,2]
[323668684,1714153839459,-500.0,0.00011183,2]
[323668685,1714153839468,-500.0,0.00011183,2]
[323668686,1714153839478,-500.0,0.00011183,2]
[323668687,1714153839488,-500.0,0.00011183,2]
[323668688,1714153839498,-500.0,0.00011183,2]
[323668689,1714153839507,-500.0,0.00011183,2]
[323668690,1714153839517,-561.3,0.00011183,2]
[323668691,1714153839526,-501.63488696,0.00011183,2]
[323668692,1714153839536,-597.98,0.00011183,2]
[323668693,1714153839545,-500.0,0.00011183,2]
[323668694,1714153839555,-500.0,0.00011183,2]
[323668695,1714153839565,-836.26,0.00011183,2]
[323668696,1714153839574,-500.0,0.00011183,2]
[323668697,1714153839585,-596.24,0.00011183,2]
[323668699,1714153839594,-501.81947576,0.00011183,2]
[323668701,1714153839604,-500.0,0.00011183,2]
[323668703,1714153839613,-1950.46,0.00011183,2]
[323668704,1714153839622,-500.0,0.00011183,2]
[323668705,1714153839632,-500.0,0.00011183,2]
[323668706,1714153839641,-500.0,0.00011183,2]
[323668707,1714153839651,-500.0,0.00011183,2]
[323668708,1714153839661,-1048.43,0.00011183,2]
[323668709,1714153839671,-500.0,0.00011183,2]
[323668710,1714153839680,-1579.21,0.00011183,2]
[323668711,1714153839690,-500.0,0.00011183,2]
[323668712,1714153839699,-500.0,0.00011183,2]
[323668713,1714153839709,-500.0,0.00011183,2]
[323668714,1714153839718,-500.0,0.00011183,2]
[323668715,1714153839728,-609.16,0.00011183,2]
[323668716,1714153839737,-500.0,0.00011183,2]
[323668717,1714153839748,-1020.56,0.00011183,2]
[323668718,1714153839757,-500.0,0.00011183,2]
[323668719,1714153839766,-604.09,0.00011183,2]
[323668720,1714153839778,-500.0,0.00011183,2]
[323668721,1714153839789,-541.27,0.00011183,2]
[323668722,1714153839799,-8599.59,0.00011183,2]
[323668723,1714153839808,-500.0,0.00011183,2]
[323668724,1714153839818,-3737.78,0.00011183,2]
[323668725,1714153839829,-1039.2,0.00011183,2]
[323668726,1714153839838,-500.0,0.00011183,2]
[323668727,1714153839848,-500.0,0.00011183,2]
[323668728,1714153839858,-759.95,0.00011183,2]
[323668729,1714153839868,-6650.83,0.00011183,2]
[323668730,1714153839878,-1434.58,0.00011183,2]
[323668731,1714153839887,-500.0,0.00011183,2]
[323668732,1714153839896,-3252.22,0.00011183,2]
[323668733,1714153839906,-1558.79,0.00011183,2]
[323668734,1714153839915,-500.0,0.00011183,2]
[323668735,1714153839924,-1043.05,0.00011183,2]
[323668736,1714153839934,-8125.44,0.00011183,2]
[323668737,1714153839944,-500.0,0.00011183,2]
[323668738,1714153839953,-2111.72,0.00011183,2]
[323668739,1714153839963,-1400.65,0.00011183,2]
[323668740,1714153839973,-500.0,0.00011183,2]
[323668741,1714153839982,-4459.78,0.00011183,2]
[323668742,1714153839992,-13157.58,0.00011183,2]
[323668743,1714153840003,-1117.95,0.00011183,2]
[323668744,1714153840013,-3561.44,0.00011183,2]
[323668745,1714153840022,-2108.81,0.00011183,2]
[323668746,1714153840032,-2126.38,0.00011183,2]
[323668747,1714153840041,-500.0,0.00011183,2]
[323668748,1714153840051,-500.0,0.00011183,2]
[323668749,1714153840061,-500.0,0.00011183,2]
[323668750,1714153840070,-985.0,0.00011183,2]
[323668751,1714153840079,-1630.02,0.00011183,2]
[323668752,1714153840089,-500.0,0.00011183,2]
[323668753,1714153840099,-2812.14,0.00011183,2]
[323668754,1714153840108,-2045.56,0.00011183,2]
[323668755,1714153840118,-500.0,0.00011183,2]
[323668756,1714153840128,-1618.78,0.00011183,2]
[323668757,1714153840138,-4501.39,0.00011183,2]
[323668758,1714153840147,-500.0,0.00011183,2]
[323668759,1714153840157,-564.45,0.00011183,2]
[323668760,1714153840166,-2370.06,0.00011183,2]
[323668761,1714153840176,-1437.32,0.00011183,2]
[323668762,1714153840185,-1682.7,0.00011183,2]
[323668764,1714153840195,-672.16,0.00011183,2]
[323668765,1714153840205,-2476.35,0.00011183,2]
[323668766,1714153840214,-2115.43,0.00011183,2]
[323668767,1714153840224,-500.0,0.00011183,2]
[323668768,1714153840233,-500.0,0.00011183,2]
[323668769,1714153840242,-500.0,0.00011183,2]
[323668770,1714153840253,-5879.45,0.00011183,2]
[323668772,1714153840262,-1265.88,0.00011183,2]
[323668773,1714153840272,-500.0,0.00011183,2]
[323668775,1714153840282,-2114.16,0.00011183,2]
[323668778,1714153840292,-753.68,0.00011183,2]
[323668780,1714153840302,-1868.59,0.00011183,2]
[323668781,1714153840311,-1681.36,0.00011183,2]
[323668783,1714153840321,-1448.86,0.00011183,2]
[323668785,1714153840330,-500.0,0.00011183,2]
[323668787,1714153840339,-500.0,0.00011183,2]
[323668789,1714153840349,-500.0,0.00011183,2]
[323668792,1714153840358,-1885.69,0.00011183,2]
[323668794,1714153840368,-1042.6,0.00011183,2]
[323668796,1714153840377,-500.0,0.00011183,2]
[323668798,1714153840387,-500.0,0.00011183,2]
[323668799,1714153840396,-1281.54,0.00011183,2]
[323668801,1714153840405,-569.67,0.00011183,2]
[323668804,1714153840415,-3341.26,0.00011183,2]
[323668806,1714153840424,-2098.32,0.00011183,2]
[323668808,1714153840432,-796.29,0.00011183,2]
[323668810,1714153840441,-500.0,0.00011183,2]
[323668812,1714153840451,-875.56,0.00011183,2]
[323668814,1714153840460,-500.0,0.00011183,2]
[323668816,1714153840469,-234.99,0.00011183,2]
[323668818,1714153840478,-500.0,0.00011183,2]
[323668820,1714153840488,-500.0,0.00011183,2]
[323668822,1714153840499,-500.0,0.00011183,2]
[323668824,1714153840507,-500.0,0.00011183,2]
[323668825,1714153840516,-2080.21,0.00011183,2]
[323668827,1714153840526,-241.57,0.00011183,2]
[323668829,1714153840535,-500.0,0.00011183,2]
[323668831,1714153840544,-2773.89,0.00011183,2]
[323668833,1714153840553,-995.74,0.00011183,2]
[323668835,1714153840563,-5765.4,0.00011183,2]
[323668837,1714153840572,-500.0,0.00011183,2]
[323668839,1714153840582,-500.0,0.00011183,2]
[323668841,1714153840591,-500.0,0.00011183,2]
[323668843,1714153840601,-3969.79,0.00011183,2]
[323668845,1714153840610,-1597.11,0.00011183,2]
[323668847,1714153840619,-1359.45,0.00011183,2]
[323668849,1714153840628,-2908.21,0.00011183,2]
[323668851,1714153840638,-1624.76,0.00011183,2]
[323668853,1714153840647,-500.0,0.00011183,2]
[323668855,1714153840657,-2907.65,0.00011183,2]
[323668857,1714153840666,-500.0,0.00011183,2]
[323668859,1714153840676,-8463.12,0.00011183,2]
[323668861,1714153840685,-2868.36,0.00011183,2]
[323668863,1714153840695,-500.0,0.00011183,2]
[323668865,1714153840704,-501.51721636,0.00011183,2]
[323668867,1714153840714,-1725.72,0.00011183,2]
[323668869,1714153840723,-5636.94,0.00011183,2]
[323668871,1714153840733,-500.0,0.00011183,2]
[323668873,1714153840742,-500.0,0.00011183,2]
[323668875,1714153840752,-1351.61,0.00011183,2]
[323668877,1714153840761,-685.6,0.00011183,2]
[323668879,1714153840772,-1882.77,0.00011183,2]
[323668881,1714153840782,-1332.43,0.00011183,2]
[323668883,1714153840792,-500.0,0.00011183,2]
[323668885,1714153840802,-953.91,0.00011183,2]
[323668887,1714153840812,-500.0,0.00011183,2]
[323668889,1714153840822,-538.91029396,0.00011183,2]
[323668891,1714153840832,-507.77650668,0.00011183,2]
[323668893,1714153840841,-217.22595204,0.00011183,2]
[323668895,1714153840851,-3452.61,0.00011183,2]
[323668898,1714153840861,-8468.82,0.00011183,2]
[323668900,1714153840870,-500.0,0.00011183,2]
[323668902,1714153840879,-500.0,0.00011183,2]
[323668904,1714153840889,-65324.8014,0.00011184,2]
[323668905,1714153840899,-167504.181,0.00011184,2]
[323668908,1714153840909,-3940.07,0.00011184,2]
[323668910,1714153840918,-160.92387271,0.00011185,2]
[323668911,1714153840928,-989.22497163,0.00011282,2]
[323668914,1714153840937,-500.0,0.00011283,2]
[323668916,1714153840947,-561.20596739,0.00011283,2]
[323668917,1714153840957,-500.0,0.00011283,2]
[323668920,1714153840966,-500.0,0.00011283,2]
[323668922,1714153840976,-500.0,0.00011283,2]
[323668924,1714153840985,-500.0,0.00011283,2]
[323668926,1714153840996,-500.0,0.00011283,2]
[323668927,1714153841006,-500.0,0.00011283,2]
[323668929,1714153841016,-500.0,0.00011283,2]
[323668931,1714153841028,-500.0,0.00011283,2]
[323668933,1714153841038,-374.91214782,0.00011283,2]
[323668936,1714153841049,-500.0,0.00011283,2]
[323668938,1714153841059,-500.0,0.00011283,2]
[323668939,1714153841068,-500.0,0.00011283,2]
[323668942,1714153841078,-500.0,0.00011283,2]
[323668944,1714153841088,-500.0,0.00011283,2]
[323668946,1714153841098,-500.0,0.00011283,2]
[323668948,1714153841107,-500.0,0.00011283,2]
[323668950,1714153841116,-500.0,0.00011283,2]
[323668952,1714153841126,-240.03321496,0.00011283,2]
[323668954,1714153841136,-543.32,0.00011283,2]
[323668956,1714153841146,-500.0,0.00011283,2]
[323668957,1714153841156,-500.0,0.00011283,2]
[323668960,1714153841166,-500.0,0.00011283,2]
[323668961,1714153841176,-500.0,0.00011283,2]
[323668964,1714153841187,-531.28,0.00011283,2]
[323668965,1714153841197,-500.0,0.00011283,2]
[323668967,1714153841208,-500.0,0.00011283,2]
[323668970,1714153841217,-500.0,0.00011283,2]
[323668972,1714153841228,-500.0,0.00011283,2]
[323668974,1714153841238,-500.0,0.00011283,2]
[323668975,1714153841249,-500.0,0.00011283,2]
[323668977,1714153841258,-500.0,0.00011283,2]
[323668979,1714153841269,-500.0,0.00011283,2]
[323668981,1714153841280,-500.0,0.00011283,2]
[323668982,1714153841290,-500.0,0.00011283,2]
[323668984,1714153841299,-500.0,0.00011283,2]
[323668986,1714153841310,-500.0,0.00011283,2]
[323668988,1714153841320,-347.14128329,0.00011283,2]
[323668990,1714153841329,-500.0,0.00011283,2]
[323668992,1714153841339,-500.0,0.00011283,2]
[323668993,1714153841349,-500.0,0.00011283,2]
[323668995,1714153841360,-500.0,0.00011283,2]
[323668997,1714153841370,-500.0,0.00011283,2]
[323668999,1714153841380,-500.0,0.00011283,2]
[323669001,1714153841390,-500.0,0.00011283,2]
[323669003,1714153841400,-500.0,0.00011283,2]
[323669005,1714153841410,-173.86023274,0.00011283,2]
[323669006,1714153841419,-596.11,0.00011283,2]
[323669008,1714153841429,-500.0,0.00011283,2]
[323669010,1714153841438,-500.0,0.00011283,2]
[323669012,1714153841448,-722.57,0.00011283,2]
[323669014,1714153841457,-500.0,0.00011283,2]
[323669016,1714153841468,-616.72,0.00011283,2]
[323669017,1714153841478,-500.0,0.00011283,2]
[323669019,1714153841488,-507.49,0.00011283,2]
[323669021,1714153841500,-469.48,0.00011283,2]
[323669023,1714153841510,-1330.3,0.00011283,2]
[323669025,1714153841520,-500.0,0.00011283,2]
[323669027,1714153841531,-500.0,0.00011283,2]
[323669029,1714153841543,-500.0,0.00011283,2]
[323669031,1714153841553,-753.52,0.00011283,2]
[323669033,1714153841563,-794.68,0.00011283,2]
[323669034,1714153841573,-704.7,0.00011283,2]
[323669036,1714153841583,-652.56,0.00011283,2]
[323669038,1714153841593,-500.0,0.00011283,2]
[323669040,1714153841603,-500.0,0.00011283,2]
[323669042,1714153841613,-500.0,0.00011283,2]
[323669044,1714153841622,-500.0,0.00011283,2]
[323669046,1714153841631,-500.0,0.00011283,2]
[323669047,1714153841642,-500.0,0.00011283,2]
[323669049,1714153841651,-532.14957478,0.00011283,2]
[323669051,1714153841661,-500.0,0.00011283,2]
[323669053,1714153841671,-500.0,0.00011283,2]
[323669055,1714153841680,-500.0,0.00011283,2]
[323669057,1714153841689,-1454.32,0.00011283,2]
[323669059,1714153841698,-981.51,0.00011283,2]
[323669060,1714153841708,-718.61,0.00011283,2]
[323669062,1714153841718,-834.61,0.00011283,2]
[323669064,1714153841728,-500.0,0.00011283,2]
[323669066,1714153841738,-500.0,0.00011283,2]
[323669068,1714153841749,-727.72,0.00011283,2]
[323669069,1714153841759,-500.0,0.00011283,2]
[323669071,1714153841769,-985.95,0.00011283,2]
[323669073,1714153841782,-500.0,0.00011283,2]
[323669075,1714153841791,-500.0,0.00011283,2]
[323669077,1714153841801,-500.0,0.00011283,2]
[323669079,1714153841810,-500.0,0.00011283,2]
[323669080,1714153841821,-500.0,0.00011283,2]
[323669082,1714153841831,-500.0,0.00011283,2]
[323669084,1714153841840,-500.0,0.00011283,2]
[323669086,1714153841853,-1110.64,0.00011283,2]
[323669109,1714153842081,-500.0,0.00011283,2]
[323669110,1714153842091,-500.0,0.00011283,2]
[323669112,1714153842101,-868.62,0.00011283,2]
[323669114,1714153842111,-295.00878785,0.00011283,2]
[323669116,1714153842120,-500.0,0.00011283,2]
[323669118,1714153842130,-500.0,0.00011283,2]
[323669120,1714153842139,-500.0,0.00011283,2]
[323669122,1714153842148,-500.0,0.00011283,2]
[323669124,1714153842158,-500.0,0.00011283,2]
[323669126,1714153842168,-1152.21,0.00011283,2]
[323669128,1714153842177,-749.69,0.00011283,2]
[323669130,1714153842187,-500.0,0.00011283,2]
[323669131,1714153842196,-500.0,0.00011283,2]
[323669133,1714153842207,-500.0,0.00011283,2]
[323669135,1714153842218,-500.0,0.00011283,2]
[323669137,1714153842228,-500.0,0.00011283,2]
[323669139,1714153842237,-606.66,0.00011283,2]
[323669141,1714153842247,-577.23,0.00011283,2]
[323669143,1714153842257,-500.0,0.00011283,2]
[323669145,1714153842266,-500.0,0.00011283,2]
[323669147,1714153842276,-270.5396822,0.00011283,2]
[323669149,1714153842286,-500.0,0.00011283,2]
[323669151,1714153842296,-500.0,0.00011283,2]
[323669153,1714153842306,-500.0,0.00011283,2]
[323669155,1714153842316,-538.02,0.00011283,2]
[323669157,1714153842325,-586.96,0.00011283,2]
[323669159,1714153842335,-500.0,0.00011283,2]
[323669161,1714153842345,-500.0,0.00011283,2]
[323669163,1714153842354,-500.0,0.00011283,2]
[323669165,1714153842363,-500.0,0.00011283,2]
[323669167,1714153842372,-903.47,0.00011283,2]
[323669169,1714153842381,-432.32809186,0.00011283,2]
[323669170,1714153842391,-500.0,0.00011283,2]
[323669173,1714153842401,-500.0,0.00011283,2]
[323669176,1714153842410,-500.0,0.00011283,2]
[323669179,1714153842419,-500.0,0.00011283,2]
[323669182,1714153842429,-500.0,0.00011283,2]
[323669184,1714153842438,-500.0,0.00011283,2]
[323669186,1714153842447,-500.0,0.00011283,2]
[323669188,1714153842457,-500.0,0.00011283,2]
[323669190,1714153842467,-500.0,0.00011283,2]
[323669192,1714153842476,-500.0,0.00011283,2]
[323669195,1714153842485,-500.0,0.00011283,2]
[323669197,1714153842496,-500.0,0.00011283,2]
[323669200,1714153842506,-500.0,0.00011283,2]
[323669203,1714153842516,-500.0,0.00011283,2]
[323669205,1714153842525,-500.0,0.00011283,2]
[323669207,1714153842534,-500.0,0.00011283,2]
[323669209,1714153842543,-500.0,0.00011283,2]
[323669211,1714153842553,-500.0,0.00011283,2]
[323669213,1714153842562,-712.56,0.00011283,2]
[323669216,1714153842571,-500.0,0.00011283,2]
[323669219,1714153842580,-500.0,0.00011283,2]
[323669222,1714153842590,-505.29,0.00011283,2]
[323669224,1714153842600,-500.0,0.00011283,2]
[323669226,1714153842609,-500.0,0.00011283,2]
[323669228,1714153842618,-500.0,0.00011283,2]
[323669231,1714153842628,-500.0,0.00011283,2]
[323669234,1714153842637,-500.0,0.00011283,2]
[323669237,1714153842647,-500.0,0.00011283,2]
[323669241,1714153842657,-500.0,0.00011283,2]
[323669245,1714153842666,-500.0,0.00011283,2]
[323669250,1714153842676,-500.0,0.00011283,2]
[323669254,1714153842686,-500.0,0.00011283,2]
[323669258,1714153842696,-500.0,0.00011283,2]
[323669262,1714153842705,-500.0,0.00011283,2]
[323669264,1714153842714,-467.28500276,0.00011283,2]
[323669266,1714153842723,-500.0,0.00011283,2]
[323669268,1714153842733,-500.0,0.00011283,2]
[323669270,1714153842742,-500.0,0.00011283,2]
[323669273,1714153842753,-500.0,0.00011283,2]
[323669276,1714153842762,-975.71,0.00011283,2]
[323669278,1714153842772,-570.45,0.00011283,2]
[323669280,1714153842784,-500.0,0.00011283,2]
[323669282,1714153842793,-1337.74,0.00011283,2]
[323669284,1714153842802,-1245.29,0.00011283,2]
[323669286,1714153842811,-500.0,0.00011283,2]
[323669288,1714153842822,-500.0,0.00011283,2]
[323669290,1714153842831,-1342.27,0.00011283,2]
[323669292,1714153842840,-500.0,0.00011283,2]
[323669294,1714153842850,-500.0,0.00011283,2]
[323669296,1714153842861,-500.0,0.00011283,2]
[323669298,1714153842871,-1017.83,0.00011283,2]
[323669300,1714153842880,-775.84,0.00011283,2]
[323669302,1714153842893,-538.08,0.00011283,2]
[323669304,1714153842902,-500.0,0.00011284,2]
[323669306,1714153842912,-408.36793413,0.00011285,2]
[323669308,1714153842922,-558.69566553,0.00011285,2]
[323669310,1714153842932,-526.8598419,0.00011285,2]
[323669312,1714153842941,-500.0,0.00011285,2]
[323669314,1714153842951,-500.0,0.00011285,2]
[323669316,1714153842961,-7626.41,0.00011285,2]
[323669318,1714153842971,-1297.06,0.00011285,2]
[323669320,1714153842981,-1970.98,0.00011285,2]
[323669321,1714153842990,-6766.92,0.00011285,2]
[323669323,1714153843001,-500.0,0.00011456,2]
[323669326,1714153843011,-500.0,0.00011456,2]
[323669328,1714153843021,-500.0,0.00011456,2]
[323669330,1714153843031,-461.06518279,0.00011456,2]
[323669332,1714153843040,-500.0,0.00011456,2]
[323669334,1714153843050,-500.0,0.00011456,2]
[323669336,1714153843060,-3175.96,0.00011456,2]
[323669338,1714153843070,-500.0,0.00011456,2]
[323669340,1714153843080,-500.0,0.00011456,2]
[323669342,1714153843090,-500.0,0.00011456,2]
[323669344,1714153843100,-500.0,0.00011456,2]
[323669346,1714153843110,-201.14,0.00011456,2]
[323669348,1714153843120,-1111.03,0.00011456,2]
[323669350,1714153843129,-300.65,0.00011456,2]
[323669352,1714153843139,-500.0,0.00011456,2]
[323669354,1714153843148,-500.0,0.00011456,2]
[323669356,1714153843158,-2741.2,0.00011456,2]
[323669358,1714153843167,-500.0,0.00011456,2]
[323669360,1714153843177,-500.0,0.00011456,2]
[323669362,1714153843186,-500.0,0.00011456,2]
[323669364,1714153843195,-500.0,0.00011456,2]
[323669367,1714153843206,-1918.88,0.00011456,2]
[323669368,1714153843215,-201.9,0.00011456,2]
[323669369,1714153843225,-576.17,0.00011456,2]
[323669370,1714153843235,-645.98,0.00011456,2]
[323669371,1714153843245,-500.0,0.00011456,2]
[323669372,1714153843258,-1197.54,0.00011456,2]
[323669374,1714153843268,-3594.29,0.00011456,2]
[323669377,1714153843278,-874.76,0.00011456,2]
[323669380,1714153843287,-354.87,0.00011456,2]
[323669383,1714153843297,-500.0,0.00011456,2]
[323669386,1714153843307,-1114.75,0.00011456,2]
[323669389,1714153843317,-1899.4,0.00011456,2]
[323669391,1714153843326,-833.01,0.00011456,2]
[323669394,1714153843335,-354.03056168,0.00011456,2]
[323669397,1714153843344,-1661.85,0.00011456,2]
[323669400,1714153843354,-1584.64,0.00011456,2]
[323669402,1714153843363,-500.0,0.00011456,2]
[323669403,1714153843372,-500.0,0.00011456,2]
[323669405,1714153843382,-1403.95,0.00011456,2]
[323669407,1714153843391,-1621.85,0.00011456,2]
[323669409,1714153843401,-1393.05,0.00011456,2]
[323669411,1714153843411,-861.92,0.00011456,2]
[323669414,1714153843421,-2115.64,0.00011456,2]
[323669416,1714153843431,-2456.83,0.00011456,2]
[323669418,1714153843441,-500.0,0.00011456,2]
[323669419,1714153843451,-2733.78,0.00011456,2]
[323669420,1714153843460,-2262.6,0.00011456,2]
[323669421,1714153843470,-500.0,0.00011456,2]
[323669422,1714153843480,-500.0,0.00011456,2]
[323669423,1714153843489,-912.92,0.00011456,2]
[323669424,1714153843501,-538.41,0.00011456,2]
[323669425,1714153843510,-926.46,0.00011456,2]
[323669426,1714153843521,-988.12,0.00011456,2]
[323669427,1714153843530,-3238.8,0.00011456,2]
[323669428,1714153843539,-898.24,0.00011456,2]
[323669429,1714153843549,-500.0,0.00011456,2]
[323669430,1714153843559,-4559.89,0.00011456,2]
[323669431,1714153843569,-500.0,0.00011456,2]
[323669432,1714153843578,-500.0,0.00011456,2]
[323669433,1714153843587,-500.0,0.00011456,2]
[323669434,1714153843597,-2409.14,0.00011456,2]
[323669435,1714153843606,-500.0,0.00011456,2]
[323669436,1714153843616,-1185.15,0.00011456,2]
[323669438,1714153843625,-500.0,0.00011456,2]
[323669440,1714153843635,-606.8,0.00011456,2]
[323669442,1714153843644,-500.0,0.00011456,2]
[323669444,1714153843654,-500.0,0.00011456,2]
[323669447,1714153843663,-1386.71,0.00011456,2]
[323669449,1714153843673,-500.0,0.00011456,2]
[323669451,1714153843682,-657.61,0.00011456,2]
[323669453,1714153843692,-524.24,0.00011456,2]
[323669455,1714153843704,-620.83,0.00011456,2]
[323669457,1714153843714,-500.0,0.00011456,2]
[323669459,1714153843723,-695.08,0.00011457,2]
[323669461,1714153843733,-500.0,0.00011457,2]
[323669463,1714153843743,-1139.72,0.00011457,2]
[323669465,1714153843753,-500.0,0.00011457,2]
[323669467,1714153843762,-500.0,0.00011457,2]
[323669469,1714153843772,-500.0,0.00011457,2]